bitfinex/quotes_BTCUSD_20220226
["timestamp","ask_amount","ask_price","bid_price","bid_amount"]
[1645901675945,1.35351741,39103.0,39102.0,0.32108869]
[1645901676349,1.35251741,39103.0,39102.0,0.32108869]
[1645901677149,0.57221741,39103.0,39102.0,0.32108869]
[1645901677954,0.380444,39103.0,39102.0,0.32108869]
[1645901678354,0.379444,39103.0,39102.0,0.32108869]
[1645901678995,0.58683011,39103.0,39102.0,0.32108869]
[1645901679395,0.58683011,39103.0,39102.0,0.32300027]
[1645901679595,0.380444,39103.0,39102.0,0.32300027]
[1645901680394,0.06021,39107.0,39102.0,0.32300027]
[1645901680592,0.06021,39107.0,39102.0,0.49119195]
[1645901680996,0.379444,39106.0,39102.0,0.49119195]
[1645901681594,0.379444,39106.0,39102.0,0.49152437]
[1645901682398,0.05,39109.0,39102.0,0.49152437]
[1645901682647,0.379444,39108.0,39102.0,0.49119195]
[1645901682846,0.01021,39110.0,39102.0,0.49152437]
[1645901683040,0.01021,39113.0,39102.0,0.49152437]
[1645901683642,0.21828307,39113.0,39102.0,0.49152437]
[1645901683841,0.42337752,39112.0,39102.0,0.49119195]
[1645901684042,0.379444,39111.0,39106.0,0.0003324]
[1645901684641,0.39779752,39112.0,39106.0,0.0003324]
[1645901684945,0.163963,39112.0,39106.0,0.0003324]
[1645901685140,0.163963,39112.0,39102.0,0.48928037]
[1645901685340,0.49779752,39112.0,39107.0,0.0003324]
[1645901685541,0.163963,39112.0,39107.0,0.0003324]
[1645901685943,1.27909752,39112.0,39107.0,0.0003324]
[1645901686143,0.49779752,39112.0,39107.0,0.0003324]
[1645901686395,0.49779752,39112.0,39108.0,0.00033239]
[1645901687091,0.49879752,39112.0,39108.0,0.00033239]
[1645901687497,0.49879752,39112.0,39103.0,0.001]
[1645901687694,0.49879752,39112.0,39108.0,0.00033239]
[1645901688095,1.28009752,39112.0,39108.0,0.00033239]
[1645901688294,0.49779752,39112.0,39108.0,0.00033239]
[1645901688695,0.52337752,39112.0,39102.0,0.48928037]
[1645901688894,0.52337752,39112.0,39108.0,0.00033239]
[1645901688895,0.49779752,39112.0,39108.0,0.00033239]
[1645901689097,0.49879752,39112.0,39108.0,0.00033239]
[1645901689495,1.28009752,39112.0,39108.0,0.00033239]
[1645901689696,0.49879752,39112.0,39108.0,0.00033239]
[1645901689900,0.7813,39111.0,39103.0,0.001]
[1645901690143,0.7813,39111.0,39108.0,0.00033239]
[1645901690144,0.33383452,39110.0,39108.0,0.00033239]
[1645901690337,0.164963,39112.0,39108.0,0.00033239]
[1645901690743,0.49779752,39112.0,39108.0,0.00033239]
[1645901691143,0.52437752,39112.0,39102.0,0.48928037]
[1645901691340,0.49879752,39112.0,39108.0,0.00033239]
[1645901691542,0.164963,39112.0,39108.0,0.00033239]
[1645901692340,0.189543,39112.0,39102.0,0.48928037]
[1645901692540,0.189543,39112.0,39108.0,0.00033239]
[1645901692541,0.063963,39112.0,39108.0,0.00033239]
[1645901692752,1.0098,39115.0,39108.0,0.00033239]
[1645901692945,0.1188,39117.0,39108.0,0.33416691]
[1645901693144,0.3632,39118.0,39108.0,0.33416691]
[1645901693145,0.001,39112.0,39108.0,0.33416691]
[1645901693345,0.001,39112.0,39108.0,0.38556691]
[1645901693549,0.001,39112.0,39109.0,0.2068366]
[1645901694400,0.9840623,39122.0,39109.0,0.2068366]
[1645901694602,0.9840623,39122.0,39109.0,0.54067112]
[1645901694603,1.0096423,39122.0,39109.0,0.54067112]
[1645901694801,0.1946978,39116.0,39109.0,0.54100351]
[1645901695000,0.1946978,39116.0,39109.0,0.20716899]
[1645901695602,0.1946978,39116.0,39109.0,0.54100351]
[1645901695803,0.1946978,39116.0,39109.0,0.54067112]
[1645901696004,0.1946978,39116.0,39111.0,0.00033238]
[1645901696402,1.03538,39122.0,39111.0,0.00033238]
[1645901696603,1.08538,39122.0,39111.0,0.00033238]
[1645901696803,1.0598,39122.0,39111.0,0.00033238]
[1645901697003,1.0598,39122.0,39109.0,0.54067112]
[1645901697204,1.0598,39122.0,39115.0,0.00033236]
[1645901697403,1.29449871,39122.0,39115.0,0.00033236]
[1645901697643,1.24449871,39122.0,39115.0,0.00033236]
[1645901697846,0.23469871,39122.0,39115.0,0.00033236]
[1645901698348,0.8945,39124.0,39115.0,0.18819151]
[1645901698546,0.8313,39124.0,39117.0,0.00025059]
[1645901698747,0.05,39124.0,39117.0,0.00025059]
[1645901699244,0.001,39124.0,39117.0,0.00025059]
[1645901699445,0.001,39124.0,39116.0,0.20369939]
[1645901700047,0.001,39124.0,39116.0,0.53753391]
[1645901700448,0.1205,39128.0,39116.0,0.53753391]
[1645901701290,0.1215,39128.0,39116.0,0.53753391]
[1645901701693,0.1215,39128.0,39122.0,0.23299787]
[1645901701890,0.001,39128.0,39122.0,0.23299787]
[1645901702491,1.00994741,39132.0,39122.0,0.23299787]
[1645901703090,1.18186949,39132.0,39122.0,0.23299787]
[1645901703295,1.18220174,39132.0,39122.0,0.23299787]
[1645901703893,1.18220174,39132.0,39121.0,0.00033235]
[1645901704091,0.32241501,39131.0,39121.0,0.00033235]
[1645901704291,0.32241501,39131.0,39119.0,0.063926]
[1645901704493,0.32241501,39131.0,39121.0,0.00031528]
[1645901705157,1.50459968,39132.0,39121.0,0.00031528]
[1645901705552,1.50459968,39132.0,39119.0,0.57447661]
[1645901705553,1.5042845,39132.0,39119.0,0.56947661]
[1645901705754,0.7813,39131.0,39121.0,0.00031528]
[1645901706653,0.7813,39131.0,39119.0,0.56947661]
[1645901706858,0.7813,39131.0,39121.0,0.00031528]
[1645901707556,1.18218467,39132.0,39121.0,0.00031528]
[1645901707755,0.17238467,39132.0,39121.0,0.00031528]
[1645901707959,0.17206949,39132.0,39125.0,0.21588567]
[1645901708158,0.17237924,39132.0,39125.0,0.21588567]
[1645901709103,0.17206949,39132.0,39125.0,0.21588567]
[1645901709405,0.00014806,39132.0,39125.0,0.54972019]
[1645901710205,0.001,39134.0,39125.0,0.54972019]
[1645901710708,0.00014806,39132.0,39125.0,0.54972019]
[1645901711404,0.001,39134.0,39125.0,0.54972019]
[1645901711803,0.0001589,39132.0,39125.0,0.54972019]
[1645901712643,0.001,39134.0,39125.0,0.54972019]
[1645901712841,0.00034372,39132.0,39125.0,0.54472019]
[1645901713444,0.00034372,39132.0,39125.0,0.21088567]
[1645901713849,0.001,39134.0,39125.0,0.54472019]
[1645901714042,0.001,39134.0,39124.0,0.063921]
[1645901714244,0.00034372,39132.0,39124.0,0.063921]
[1645901715043,0.001,39134.0,39124.0,0.063921]
[1645901715446,0.0002441,39132.0,39124.0,0.063921]
[1645901715846,0.0002441,39132.0,39125.0,0.38523452]
[1645901716290,0.001,39134.0,39125.0,0.38523452]
[1645901716692,0.00031524,39134.0,39129.0,0.21476537]
[1645901716893,0.00031524,39134.0,39130.0,0.063909]
[1645901717594,0.00031524,39134.0,39125.0,0.38523452]
[1645901717798,0.00031524,39134.0,39125.0,0.38541967]
[1645901717995,0.00031524,39134.0,39127.0,0.063914]
[1645901718195,0.00031524,39134.0,39127.0,0.115314]
[1645901719001,0.00035369,39132.0,39127.0,0.115314]
[1645901719196,0.00035369,39132.0,39129.0,0.05]
[1645901720043,0.00031524,39134.0,39129.0,0.05]
[1645901720241,0.00035369,39132.0,39129.0,0.05]
[1645901721042,0.00031524,39134.0,39129.0,0.05]
[1645901721444,0.00035369,39132.0,39129.0,0.05]
[1645901722245,0.00031524,39134.0,39129.0,0.05]
[1645901722544,0.00035369,39132.0,39129.0,0.05]
[1645901723646,0.379444,39133.0,39129.0,0.05]
[1645901723647,1.160744,39130.0,39129.0,0.05]
[1645901725299,1.161744,39130.0,39129.0,0.05]
[1645901725499,1.161744,39130.0,39129.0,0.050235]
[1645901726102,0.58360619,39130.0,39129.0,0.050235]
[1645901726502,0.58260619,39130.0,39129.0,0.050235]
[1645901726702,1.39114956,39130.0,39129.0,0.000235]
[1645901726904,1.50135956,39130.0,39129.0,0.000235]
[1645901727102,1.95411619,39130.0,39129.0,0.000175]
[1645901727305,1.95511619,39130.0,39129.0,0.000175]
[1645901727542,1.22521619,39130.0,39129.0,0.000175]
[1645901727746,0.79437219,39130.0,39129.0,0.000175]
[1645901728142,1.56546219,39130.0,39129.0,0.000175]
[1645901728350,1.94490619,39130.0,39129.0,0.000175]
[1645901728642,1.56446219,39130.0,39129.0,0.000175]
[1645901728843,1.94390619,39130.0,39129.0,0.000175]
[1645901729241,1.94490619,39130.0,39129.0,0.000175]
[1645901730544,1.95411619,39130.0,39129.0,0.000175]
[1645901731144,1.95511619,39130.0,39129.0,0.000175]
[1645901731399,2.25651619,39130.0,39129.0,0.000175]
[1645901731596,2.11290578,39130.0,39129.0,0.000175]
[1645901732395,2.11190578,39130.0,39129.0,0.000175]
[1645901733000,2.28874587,39130.0,39125.0,7.64e-06]
[1645901733197,0.80688,39121.0,39100.0,0.21561927]
[1645901733400,0.7813,39114.0,39099.0,0.3025]
[1645901733597,0.7813,39112.0,39099.0,0.3025]
[1645901733897,1.160744,39113.0,39112.0,0.24371703]
[1645901734096,1.35876304,39113.0,39112.0,0.24371703]
[1645901735153,0.379444,39113.0,39112.0,0.24371703]
[1645901735350,0.380444,39113.0,39112.0,0.24371703]
[1645901737155,0.381444,39113.0,39112.0,0.24371703]
[1645901738155,1.162744,39113.0,39112.0,0.24371703]
[1645901738361,0.381444,39113.0,39112.0,0.24371703]
[1645901738556,0.379444,39113.0,39112.0,0.24371703]
[1645901739187,0.380444,39113.0,39112.0,0.24371703]
[1645901740388,0.379444,39113.0,39112.0,0.24371703]
[1645901740788,1.160744,39113.0,39112.0,0.24371703]
[1645901741292,1.161744,39113.0,39112.0,0.24371703]
[1645901742646,1.210744,39113.0,39112.0,0.24371703]
[1645901742837,1.260744,39113.0,39112.0,0.24371703]
[1645901743235,1.261744,39113.0,39112.0,0.24371703]
[1645901743635,1.261744,39113.0,39112.0,0.23871703]
[1645901744438,1.270954,39113.0,39112.0,0.23871703]
[1645901744636,1.220954,39113.0,39112.0,0.23871703]
[1645901744836,1.270954,39113.0,39112.0,0.23871703]
[1645901745236,1.271954,39113.0,39112.0,0.23871703]
[1645901747088,1.270954,39113.0,39112.0,0.23871703]
[1645901747287,1.271954,39113.0,39112.0,0.23871703]
[1645901747490,1.211744,39113.0,39112.0,0.23871703]
[1645901747695,1.161744,39113.0,39112.0,0.23871703]
[1645901748290,0.380444,39113.0,39112.0,0.23871703]
[1645901748491,1.160744,39113.0,39112.0,0.23871703]
[1645901749291,1.211744,39113.0,39112.0,0.23871703]
[1645901749493,1.261744,39113.0,39112.0,0.23871703]
[1645901750546,1.260744,39113.0,39112.0,0.23871703]
[1645901751343,1.261744,39113.0,39112.0,0.23871703]
[1645901752145,1.32571038,39113.0,39112.0,0.23871703]
[1645901752347,1.32571038,39113.0,39100.0,0.1203]
[1645901752348,1.9813,39112.0,39100.0,0.1203]
[1645901752546,0.7813,39107.0,39100.0,0.1203]
[1645901752745,0.379444,39104.0,39098.0,0.1986]
[1645901752949,0.7813,39105.0,39096.0,0.1911]
[1645901753147,0.21653014,39103.0,39096.0,0.42470774]
[1645901753347,0.063976,39104.0,39096.0,0.42470774]
[1645901753546,0.7813,39107.0,39096.0,0.23360774]
[1645901753794,0.0358,39110.0,39098.0,0.0003317]
[1645901753795,1.160744,39106.0,39098.0,0.0003317]
[1645901754396,0.21458985,39104.0,39098.0,0.0003317]
[1645901754898,0.21458985,39104.0,39099.0,0.00033169]
[1645901755095,0.379444,39102.0,39099.0,0.00033169]
[1645901755297,0.379444,39103.0,39099.0,0.00033169]
[1645901755509,0.21458985,39104.0,39099.0,0.00033169]
[1645901755699,0.379444,39103.0,39099.0,0.00033169]
[1645901755898,0.446344,39103.0,39094.0,0.67024673]
[1645901756099,0.0669,39103.0,39093.0,0.41691927]
[1645901756298,0.8482,39103.0,39093.0,0.41691927]
[1645901756499,0.0669,39103.0,39094.0,0.21561927]
[1645901756800,0.0669,39103.0,39094.0,0.55066047]
[1645901756999,0.27856485,39104.0,39094.0,0.55066047]
[1645901757201,1.05986485,39104.0,39094.0,0.3350412]
[1645901757401,1.05986485,39104.0,39094.0,0.55066047]
[1645901758241,0.27856485,39104.0,39099.0,0.20679348]
[1645901758642,0.27856485,39104.0,39094.0,0.55066047]
[1645901758840,0.27856485,39104.0,39094.0,0.21561927]
[1645901759042,0.379444,39103.0,39101.0,0.00143549]
[1645901760343,0.063975,39104.0,39101.0,0.00143549]
[1645901760545,0.379444,39107.0,39101.0,0.00143549]
[1645901760944,0.379444,39107.0,39101.0,0.00177893]
[1645901761145,0.22922663,39104.0,39101.0,0.00177893]
[1645901761402,0.379444,39103.0,39101.0,0.00177893]
[1645901761900,0.379444,39103.0,39101.0,0.00143549]
[1645901762902,1.160744,39103.0,39101.0,0.00143549]
[1645901763304,0.380444,39103.0,39101.0,0.00143549]
[1645901763503,0.001,39103.0,39101.0,0.00143549]
[1645901763903,0.65031758,39110.0,39109.0,0.19645434]
[1645901764203,0.70031758,39110.0,39109.0,0.19645434]
[1645901764604,1.48161758,39110.0,39109.0,0.19645434]
[1645901765239,1.53161758,39110.0,39109.0,0.19645434]
[1645901765444,1.53261758,39110.0,39109.0,0.19645434]
[1645901766743,1.53161758,39110.0,39109.0,0.19645434]
[1645901767343,1.53261758,39110.0,39109.0,0.19645434]
[1645901768349,1.325714,39110.0,39109.0,0.19645434]
[1645901768544,1.261744,39110.0,39109.0,0.19645434]
[1645901768792,1.260744,39110.0,39109.0,0.19645434]
[1645901769394,1.261744,39110.0,39109.0,0.19645434]
[1645901769594,3.7016123,39110.0,39109.0,0.19645434]
[1645901770592,3.7006123,39110.0,39109.0,0.19645434]
[1645901771394,3.7026123,39110.0,39109.0,0.19645434]
[1645901772644,3.7006123,39110.0,39109.0,0.19645434]
[1645901773244,3.7016123,39110.0,39109.0,0.19645434]
[1645901774447,1.261744,39110.0,39109.0,0.19645434]
[1645901774647,1.260744,39110.0,39109.0,0.19645434]
[1645901774848,1.5927948,39110.0,39109.0,0.19645434]
[1645901775246,1.5947948,39110.0,39109.0,0.19645434]
[1645901775646,3.83102227,39110.0,39109.0,0.19645434]
[1645901776694,3.82902227,39110.0,39109.0,0.19645434]
[1645901776992,3.82902227,39110.0,39109.0,0.19601474]
[1645901777396,3.83102227,39110.0,39109.0,0.19601474]
[1645901778198,1.262744,39110.0,39109.0,0.19601474]
[1645901778600,1.260744,39110.0,39109.0,0.19601474]
[1645901778796,1.160744,39110.0,39109.0,0.19601474]
[1645901779497,1.162744,39110.0,39109.0,0.19601474]
[1645901780537,1.160744,39110.0,39109.0,0.19601474]
[1645901781338,1.162744,39110.0,39109.0,0.19601474]
[1645901782538,1.160744,39110.0,39109.0,0.19601474]
[1645901783443,1.162744,39110.0,39109.0,0.19601474]
[1645901784299,0.002,39110.0,39109.0,0.19601474]
[1645901784700,0.32249009,39118.0,39109.0,0.19601474]
[1645901784898,0.3053,39123.0,39110.0,0.3320508]
[1645901784899,0.86829706,39119.0,39110.0,0.3320508]
[1645901785099,0.54580697,39119.0,39110.0,0.3320508]
[1645901785299,0.379444,39118.0,39112.0,0.19718454]
[1645901785497,0.3729,39119.0,39112.0,0.19718454]
[1645901785699,1.10379009,39120.0,39112.0,0.19718454]
[1645901785902,0.379444,39119.0,39112.0,0.19718454]
[1645901786301,0.1728958,39119.0,39114.0,0.00032072]
[1645901786700,0.379444,39118.0,39114.0,0.00032072]
[1645901787302,0.8313,39120.0,39112.0,0.19718454]
[1645901787553,0.7813,39120.0,39114.0,0.00032072]
[1645901788151,0.17288286,39122.0,39114.0,0.00032072]
[1645901788351,0.17288286,39123.0,39120.0,0.20513154]
[1645901788754,0.379444,39122.0,39120.0,0.20513154]
[1645901789551,0.7813,39124.0,39120.0,0.20513154]
[1645901790352,0.17287668,39124.0,39120.0,0.20513154]
[1645901790652,0.23682168,39125.0,39120.0,0.20513154]
[1645901791053,0.17287668,39125.0,39120.0,0.20544079]
[1645901791302,0.32249009,39126.0,39120.0,0.00030925]
[1645901791506,0.7813,39126.0,39120.0,0.00030925]
[1645901791701,0.7813,39125.0,39120.0,0.00030925]
[1645901792102,0.27287668,39126.0,39113.0,0.3320508]
[1645901792302,0.1,39126.0,39121.0,0.00030925]
[1645901792504,0.7813,39125.0,39121.0,0.00030925]
[1645901792702,0.7808595,39125.0,39121.0,0.00030925]
[1645901793104,0.7808595,39122.0,39121.0,0.00030925]
[1645901793304,0.7808595,39122.0,39111.0,0.5249508]
[1645901793506,0.063952,39120.0,39111.0,0.1929]
[1645901793706,0.063952,39120.0,39110.0,0.2996]
[1645901793903,0.8448115,39120.0,39110.0,0.2996]
[1645901794305,0.8448115,39120.0,39110.0,0.51791556]
[1645901794707,0.8448115,39120.0,39113.0,0.00031052]
[1645901795348,0.8458115,39120.0,39113.0,0.00031052]
[1645901795850,0.8458115,39120.0,39115.0,0.00031051]
[1645901796653,0.8448115,39120.0,39115.0,0.00031051]
[1645901796854,0.8448115,39120.0,39110.0,0.2996]
[1645901796855,0.99012386,39117.0,39110.0,0.2996]
[1645901797052,0.063961,39114.0,39110.0,0.187]
[1645901797256,0.063961,39114.0,39109.0,0.20622474]
[1645901797653,0.7823,39117.0,39109.0,0.20622474]
[1645901797857,0.001,39117.0,39112.0,0.18962887]
[1645901798653,0.95419411,39122.0,39112.0,0.18962887]
[1645901798893,0.00850599,39119.0,39112.0,0.18962887]
[1645901799493,0.379444,39118.0,39114.0,0.00031031]
[1645901799694,0.00850599,39119.0,39114.0,0.00031031]
[1645901800295,0.379444,39116.0,39114.0,0.00031031]
[1645901800497,0.00850599,39119.0,39109.0,0.20622474]
[1645901800498,0.379444,39114.0,39109.0,0.20622474]
[1645901800709,1.160744,39114.0,39109.0,0.20622474]
[1645901801096,0.379444,39114.0,39109.0,0.20622474]
[1645901801902,0.379444,39114.0,39110.0,0.00031035]
[1645901802950,0.7813,39116.0,39109.0,0.20622474]
[1645901803151,0.379444,39115.0,39110.0,0.00031035]
[1645901803452,0.379444,39113.0,39110.0,0.00031035]
[1645901804052,0.001,39114.0,39109.0,0.20622474]
[1645901804250,0.379444,39113.0,39110.0,0.00031035]
[1645901804455,0.001,39114.0,39110.0,0.00031035]
[1645901805255,0.001,39114.0,39109.0,0.20622474]
[1645901805453,0.002,39114.0,39110.0,0.00031035]
[1645901806498,0.002,39114.0,39109.0,0.20622474]
[1645901806701,1.160744,39116.0,39110.0,0.00031035]
[1645901807105,0.7813,39116.0,39110.0,0.00031035]
[1645901807699,0.7813,39116.0,39109.0,0.20622474]
[1645901807999,0.379444,39115.0,39111.0,0.00031034]
[1645901808199,1.01740993,39119.0,39111.0,0.00031034]
[1645901808400,1.160744,39118.0,39111.0,0.00031034]
[1645901808801,0.379444,39118.0,39109.0,0.20622474]
[1645901808999,0.05,39119.0,39113.0,0.00031034]
[1645901809201,0.379444,39118.0,39113.0,0.00031034]
[1645901810045,0.379444,39118.0,39109.0,0.20622474]
[1645901810246,0.379444,39119.0,39114.0,0.00031033]
[1645901810445,1.160744,39119.0,39114.0,0.00031033]
[1645901811248,1.160744,39119.0,39109.0,0.20622474]
[1645901811448,0.001,39119.0,39115.0,0.00031033]
[1645901811647,0.379444,39118.0,39115.0,0.00031033]
[1645901812449,0.379444,39118.0,39114.0,0.20281101]
[1645901812648,0.379444,39118.0,39115.0,0.00031033]
[1645901813450,0.382444,39118.0,39115.0,0.00031033]
[1645901813651,0.39094059,39118.0,39109.0,0.20622474]
[1645901813895,0.379444,39117.0,39115.0,0.00031033]
[1645901814898,0.00849659,39118.0,39112.0,0.19436756]
[1645901815095,0.00849659,39118.0,39114.0,0.00031033]
[1645901815395,0.379444,39116.0,39114.0,0.00031033]
[1645901815794,0.00849659,39118.0,39114.0,0.00031033]
[1645901815995,0.379444,39117.0,39114.0,0.00031033]
[1645901817197,0.379444,39117.0,39112.0,0.19436756]
[1645901817400,0.063955,39117.0,39114.0,0.00031033]
[1645901818444,0.063955,39117.0,39112.0,0.19436756]
[1645901818645,0.063955,39117.0,39114.0,0.00031033]
[1645901819545,0.064955,39117.0,39114.0,0.00031033]
[1645901819748,0.064955,39117.0,39109.0,0.20722474]
[1645901819950,0.064955,39117.0,39114.0,0.00031033]
[1645901820146,0.379444,39116.0,39114.0,0.00031033]
[1645901820746,0.063955,39117.0,39114.0,0.00031033]
[1645901820946,0.063955,39117.0,39112.0,0.23697246]
[1645901821148,0.8313,39119.0,39113.0,0.00031033]
[1645901821395,0.001,39117.0,39113.0,0.00031033]
[1645901821995,0.001,39117.0,39112.0,0.23697246]
[1645901822195,0.001,39117.0,39113.0,0.00031033]
[1645901822599,0.379444,39116.0,39113.0,0.00031033]
[1645901822795,0.7813,39119.0,39113.0,0.00031033]
[1645901822994,0.7813,39118.0,39113.0,0.00031033]
[1645901823195,0.379444,39117.0,39112.0,0.23697246]
[1645901823396,0.7813,39118.0,39114.0,0.00031033]
[1645901823595,0.379444,39117.0,39114.0,0.00031033]
[1645901823995,0.7813,39118.0,39114.0,0.00031033]
[1645901824199,0.443401,39117.0,39114.0,0.00031033]
[1645901824395,0.507358,39117.0,39109.0,0.41163401]
[1645901824595,0.507358,39117.0,39114.0,0.00031033]
[1645901825550,1.289658,39117.0,39114.0,0.00031033]
[1645901825751,0.910214,39117.0,39109.0,0.41263401]
[1645901826851,0.7813,39115.0,39109.0,0.41163401]
[1645901827053,0.063957,39117.0,39109.0,0.41163401]
[1645901827652,0.22439811,39119.0,39109.0,0.74779333]
[1645901827858,0.06395,39120.0,39110.0,0.21561927]
[1645901828062,0.11395,39120.0,39110.0,0.21561927]
[1645901828257,0.16395,39120.0,39110.0,0.21561927]
[1645901828899,0.38792178,39116.0,39115.0,0.20995109]
[1645901829298,0.00847778,39116.0,39115.0,0.20995109]
[1645901829500,0.00947778,39116.0,39115.0,0.20995109]
[1645901830702,0.00847778,39116.0,39115.0,0.20995109]
[1645901831102,0.00847778,39116.0,39114.0,0.00035327]
[1645901831302,0.379444,39115.0,39114.0,0.00035327]
[1645901831700,0.379444,39115.0,39110.0,0.21661927]
[1645901831901,0.00947778,39116.0,39113.0,0.00035328]
[1645901832749,0.00847778,39116.0,39113.0,0.00035328]
[1645901832945,0.00847778,39116.0,39111.0,0.21561927]
[1645901833148,0.00847778,39116.0,39113.0,0.00035328]
[1645901833546,0.00947778,39116.0,39113.0,0.00035328]
[1645901834146,0.00947778,39116.0,39111.0,0.21561927]
[1645901834347,0.00947778,39116.0,39113.0,0.00032934]
[1645901834747,0.00847778,39116.0,39113.0,0.00032934]
[1645901835349,0.379444,39115.0,39110.0,0.21561927]
[1645901835550,0.00947778,39116.0,39113.0,0.00032934]
[1645901836598,0.00947778,39116.0,39111.0,0.21561927]
[1645901836795,0.00847778,39116.0,39113.0,0.00032934]
[1645901837494,0.00947778,39116.0,39113.0,0.00032934]
[1645901837695,0.00947778,39116.0,39111.0,0.21561927]
[1645901837896,0.00947778,39116.0,39113.0,0.00032934]
[1645901838694,0.001,39116.0,39113.0,0.00032934]
[1645901838896,0.001,39116.0,39111.0,0.21561927]
[1645901838897,0.379444,39119.0,39111.0,0.21561927]
[1645901839094,0.379444,39119.0,39113.0,0.00033096]
[1645901839495,0.380444,39119.0,39113.0,0.00033096]
[1645901840149,0.380444,39119.0,39111.0,0.21561927]
[1645901840351,0.380444,39119.0,39114.0,0.00033095]
[1645901840854,0.44340057,39119.0,39114.0,0.00033095]
[1645901841253,0.379444,39119.0,39111.0,0.21561927]
[1645901841453,0.379444,39119.0,39115.0,0.00033095]
[1645901841652,0.380444,39119.0,39115.0,0.00033095]
[1645901842452,0.380444,39119.0,39112.0,0.21561927]
[1645901842860,0.379444,39119.0,39115.0,0.00033084]
[1645901843655,0.00849659,39118.0,39112.0,0.21561927]
[1645901843897,0.379444,39117.0,39115.0,0.00033084]
[1645901844296,1.160744,39117.0,39115.0,0.00033084]
[1645901844495,0.379444,39117.0,39115.0,0.00033084]
[1645901844897,0.379444,39117.0,39112.0,0.21561927]
[1645901845098,0.379444,39117.0,39114.0,0.00033084]
[1645901845698,0.380444,39117.0,39114.0,0.00033084]
[1645901846102,0.380444,39117.0,39112.0,0.21561927]
[1645901846299,0.380444,39117.0,39114.0,0.00033085]
[1645901846700,0.379444,39117.0,39114.0,0.00033085]
[1645901847000,0.443401,39117.0,39114.0,0.00033085]
[1645901847201,0.507358,39117.0,39114.0,0.00033085]
[1645901847400,0.507358,39117.0,39111.0,0.21561927]
[1645901847646,0.128914,39117.0,39114.0,0.00033085]
[1645901847850,0.379444,39116.0,39114.0,0.00033085]
[1645901848653,0.38386758,39116.0,39113.0,0.00033086]
[1645901848848,0.38792178,39116.0,39113.0,0.00033086]
[1645901849649,0.38892178,39116.0,39113.0,0.00033086]
[1645901849849,0.00947778,39116.0,39113.0,0.00033086]
[1645901850049,0.379444,39115.0,39113.0,0.00033086]
[1645901850848,0.379444,39114.0,39110.0,0.21561927]
[1645901851048,0.00847778,39116.0,39112.0,0.00033086]
[1645901851316,0.379444,39115.0,39112.0,0.00033086]
[1645901851513,0.001,39114.0,39112.0,0.00033086]
[1645901852115,0.001,39114.0,39111.0,0.21561927]
[1645901852312,0.001,39114.0,39111.0,0.21595013]
[1645901852915,0.00847778,39116.0,39111.0,0.21595013]
[1645901853314,0.00847778,39116.0,39111.0,0.21561927]
[1645901853516,0.00947778,39116.0,39112.0,0.21595013]
[1645901853716,0.001,39116.0,39112.0,0.21595013]
[1645901854516,0.001,39116.0,39112.0,0.21561927]
[1645901854715,0.001,39116.0,39112.0,0.21595013]
[1645901854916,0.001,39116.0,39112.0,0.00033086]
[1645901854917,0.379444,39116.0,39112.0,0.00033086]
[1645901855149,0.71560332,39116.0,39112.0,0.00033086]
[1645901855549,0.71660332,39116.0,39112.0,0.00033086]
[1645901855748,0.71660332,39116.0,39111.0,0.21561927]
[1645901856049,0.379444,39114.0,39112.0,0.00033086]
[1645901856251,1.49690332,39113.0,39112.0,0.00033086]
[1645901856650,1.66979378,39113.0,39112.0,0.00026367]
[1645901856849,1.99259596,39113.0,39112.0,0.00020367]
[1645901857049,0.379444,39111.0,39109.0,0.19601474]
[1645901857348,0.7813,39110.0,39109.0,0.19601474]
[1645901857554,1.39500345,39110.0,39109.0,0.19601474]
[1645901857750,1.260744,39110.0,39109.0,0.19601474]
[1645901858154,1.44387888,39110.0,39109.0,0.19601474]
[1645901858800,1.44387888,39110.0,39109.0,0.19592529]
[1645901859601,1.49627888,39110.0,39109.0,0.19592529]
[1645901860202,1.76513067,39110.0,39109.0,0.19592529]
[1645901860403,1.49627888,39110.0,39109.0,0.19592529]
[1645901860602,1.323354,39110.0,39109.0,0.19592529]
[1645901860802,1.49628226,39110.0,39109.0,0.19592529]
[1645901861005,1.49528226,39110.0,39109.0,0.00606201]
[1645901861708,1.7660615,39110.0,39109.0,0.00606201]
[1645901862403,1.49728226,39110.0,39109.0,0.00606201]
[1645901862652,1.7660615,39110.0,39109.0,0.00606201]
[1645901862854,1.49528226,39110.0,39109.0,0.00606201]
[1645901863651,1.49728226,39110.0,39109.0,0.00606201]
[1645901864051,1.50021126,39110.0,39109.0,0.00606201]
[1645901864554,1.71521176,39110.0,39109.0,0.00606201]
[1645901864752,1.66321176,39110.0,39109.0,0.00606201]
[1645901865554,1.65400176,39110.0,39109.0,0.00606201]
[1645901865955,0.77130176,39110.0,39109.0,0.00606201]
[1645901866156,0.17685726,39110.0,39109.0,0.00606201]
[1645901866413,0.003929,39110.0,39109.0,0.00606201]
[1645901866613,0.003929,39110.0,39103.0,0.33875278]
[1645901866817,0.003929,39110.0,39108.0,0.00034331]
[1645901867024,0.002929,39110.0,39108.0,0.00034331]
[1645901867211,0.002929,39110.0,39108.0,0.21847835]
[1645901867614,0.004929,39110.0,39108.0,0.21847835]
[1645901867813,0.004929,39110.0,39108.0,0.21813504]
[1645901869016,0.002929,39110.0,39108.0,0.21813504]
[1645901869420,0.2150005,39116.0,39108.0,0.21813504]
[1645901869421,0.379436,39115.0,39108.0,0.21813504]
[1645901870453,0.379436,39115.0,39110.0,0.00033077]
[1645901871453,0.39085776,39116.0,39108.0,0.21813504]
[1645901871658,0.379436,39115.0,39110.0,0.00033077]
[1645901872553,0.379436,39115.0,39108.0,0.21813504]
[1645901872752,0.379436,39115.0,39110.0,0.00033161]
[1645901873807,0.00152536,39114.0,39108.0,0.21813504]
[1645901874000,0.00152536,39114.0,39110.0,0.00033161]
[1645901874201,0.379436,39113.0,39110.0,0.00033161]
[1645901875002,0.379436,39113.0,39103.0,0.67297866]
[1645901875003,0.379436,39112.0,39103.0,0.67297866]
[1645901875205,0.28048686,39114.0,39110.0,0.00033161]
[1645901875402,0.06548636,39114.0,39110.0,0.00033161]
[1645901876205,0.06548636,39114.0,39104.0,0.54596713]
[1645901876402,0.379436,39113.0,39110.0,0.00033154]
[1645901876803,1.160736,39113.0,39110.0,0.00033154]
[1645901877007,1.160736,39111.0,39110.0,0.00033154]
[1645901877547,0.443407,39110.0,39109.0,0.00033154]
[1645901878548,0.443407,39110.0,39102.0,0.21612588]